fUST/lending_fUST_20250615
["ID","MTS","AMOUNT","RATE_DAILY","PERIOD"]
[365843949,1749953453532,-35987.10543398,0.000238,3]
[365843950,1749953453542,-151.0,0.000238,7]
[365843951,1749953453551,-152.89444,0.000238,7]
[365843952,1749953453560,-173.611565,0.000238,7]
[365843953,1749953453570,-173.611565,0.000238,7]
[365843954,1749953453579,-151.0,0.000238,7]
[365843955,1749953453589,-184.30823,0.000238,7]
[365843956,1749953453598,-213.28201367,0.000238,3]
[365843957,1749953453608,-151.0,0.000238,7]
[365843958,1749953453618,-151.0,0.000238,7]
[365843959,1749953453628,-306.617606,0.000238,7]
[365843960,1749953453637,-306.617606,0.000238,7]
[365843961,1749953453647,-163.632209,0.000238,7]
[365843962,1749953453656,-395.502318,0.000238,7]
[365843963,1749953453665,-395.502318,0.000238,7]
[365843964,1749953453674,-165.105882,0.000238,7]
[365843965,1749953453685,-165.105882,0.000238,7]
[365843966,1749953453695,-160.0,0.000238,3]
[365843967,1749953453704,-229.86375354,0.000238,3]
[365843968,1749953453713,-160.0,0.000238,3]
[365843969,1749953453722,-151.0,0.000238,7]
[365843970,1749953453732,-160.0,0.000238,3]
[365843971,1749953453742,-845.25843836,0.000238,3]
[365843972,1749953453752,-835.55256958,0.000238,3]
[365843973,1749953453762,-160.0,0.000238,3]
[365843974,1749953453771,-424.47602138,0.000238,3]
[365843975,1749953453781,-2000.0,0.00023816,2]
[365843976,1749953453791,-1190.91045406,0.00023831,10]
[365843977,1749953453800,-1526.25,0.00023834,4]
[365843978,1749953453810,-3283.93,0.00023834,4]
[365843979,1749953453820,-1450.74,0.00023834,4]
[365843980,1749953453830,-460.0,0.00023834,4]
[365843981,1749953453839,-173.611565,0.00023835,7]
[365843982,1749953453849,-173.611565,0.00023835,7]
[365843983,1749953453859,-151.0,0.00023835,7]
[365843984,1749953453868,-590.55,0.00023835,4]
[365843985,1749953453878,-460.0,0.00023835,4]
[365843986,1749953453887,-460.0,0.00023835,4]
[365843987,1749953453897,-839.43,0.00023835,4]
[365843988,1749953453907,-676.22,0.00023835,4]
[365843989,1749953453917,-460.0,0.00023835,4]
[365843990,1749953453926,-460.0,0.00023835,4]
[365843991,1749953453936,-684.55,0.00023835,2]
[365843992,1749953453945,-460.0,0.00023835,4]
[365843993,1749953453954,-620.54,0.00023835,4]
[365843994,1749953453964,-675.91,0.00023835,4]
[365843995,1749953453974,-460.0,0.00023835,4]
[365843996,1749953453983,-2170.83,0.00023835,4]
[365843997,1749953453993,-499.86920794,0.00023835,4]
[365843998,1749953454003,-2420.66,0.00023835,4]
[365843999,1749953454013,-2453.69,0.00023835,4]
[365844000,1749953454022,-910.51,0.00023835,4]
[365844001,1749953454032,-793.09,0.00023835,4]
[365844002,1749953454041,-460.0,0.00023835,4]
[365844003,1749953454051,-460.0,0.00023835,4]
[365844004,1749953454060,-1056.35,0.00023835,4]
[365844005,1749953454069,-627.67,0.00023835,4]
[365844006,1749953454079,-460.0,0.00023835,4]
[365844007,1749953454088,-460.0,0.00023835,4]
[365844008,1749953454098,-1228.45,0.00023835,4]
[365844009,1749953454107,-460.0,0.00023835,4]
[365844010,1749953454116,-460.0,0.00023835,4]
[365844011,1749953454126,-460.0,0.00023835,4]
[365844012,1749953454135,-460.0,0.00023835,4]
[365844013,1749953454144,-566.9,0.00023835,4]
[365844014,1749953454154,-460.0,0.00023835,4]
[365844015,1749953454164,-511.12,0.00023835,4]
[365844016,1749953454174,-464.68,0.00023835,4]
[365844017,1749953454183,-406.05364931,0.00023835,4]
[365844018,1749953454193,-999.84,0.00023835,4]
[365844019,1749953454202,-301.07078116,0.00023835,4]
[365844020,1749953454213,-486.97,0.00023835,4]
[365844021,1749953454222,-460.0,0.00023835,4]
[365844022,1749953454231,-1441.02,0.00023835,4]
[365844023,1749953454240,-2913.08,0.00023835,4]
[365844024,1749953454250,-460.0,0.00023835,4]
[365844025,1749953454259,-460.0,0.00023835,4]
[365844026,1749953454269,-740.12,0.00023835,4]
[365844027,1749953454279,-587.65,0.00023835,4]
[365844028,1749953454288,-460.0,0.00023835,4]
[365844029,1749953454297,-460.0,0.00023835,4]
[365844030,1749953454307,-1576.48,0.00023835,4]
[365844031,1749953454319,-2285.9,0.00023835,4]
[365844032,1749953454328,-1072.81,0.00023835,4]
[365844033,1749953454337,-472.38,0.00023835,4]
[365844034,1749953454346,-460.0,0.00023835,4]
[365844035,1749953454356,-460.0,0.00023835,4]
[365844036,1749953454365,-460.0,0.00023835,4]
[365844037,1749953454374,-2728.97,0.00023835,4]
[365844038,1749953454383,-2389.94,0.00023835,4]
[365844039,1749953454395,-460.0,0.00023835,4]
[365844040,1749953454405,-3155.5,0.00023835,4]
[365844041,1749953454415,-673.79,0.00023835,4]
[365844042,1749953454424,-290.0,0.00023835,4]
[365844043,1749953454433,-517.41,0.00023835,4]
[365844044,1749953454443,-786.53,0.00023835,4]
[365844045,1749953454453,-297.39743856,0.00023835,4]
[365844046,1749953454463,-460.0,0.00023835,4]
[365844047,1749953454473,-771.25,0.0002386,7]
[365844048,1749953454482,-2743.89,0.000239,2]
[365844049,1749953454492,-54981.42419216,0.000239,7]
[365844050,1749953454584,-1398.07688309,0.000239,7]
[365844051,1749953454767,-460.0,0.00021917,4]
[365844052,1749953454778,-523.66887646,0.00021917,4]
[365844053,1749953454788,-500.0,0.00021917,4]
[365844054,1749953454798,-500.0,0.00021917,4]
[365844055,1749953454809,-500.0,0.00021917,4]
[365844056,1749953454819,-500.0,0.00021917,4]
[365844057,1749953454830,-150.50585284,0.00021917,4]
[365844058,1749953454841,-460.0,0.00021917,4]
[365844059,1749953454850,-460.0,0.00021917,4]
[365844060,1749953454861,-460.0,0.00022191,4]
[365844061,1749953454871,-460.0,0.00022191,4]
[365844062,1749953454881,-460.0,0.00022191,4]
[365844063,1749953454891,-460.0,0.00022465,4]
[365844064,1749953454900,-460.0,0.00022465,4]
[365844065,1749953454910,-460.0,0.00022739,4]
[365844066,1749953454920,-845.10789306,0.00022934,2]
[365844067,1749953454930,-497.6310451,0.00023013,4]
[365844068,1749953454941,-7870.43038163,0.000239,7]
[365844069,1749953454951,-9780.62879413,0.000239,7]
[365844070,1749953454964,-2947.09178523,0.000239,7]
[365844071,1749953454973,-178.576594,0.000239,5]
[365844072,1749953454983,-75.25661326,0.000239,7]
[365844073,1749953454995,-75.74338674,0.000239,7]
[365844074,1749953455006,-151.0,0.000239,7]
[365844075,1749953455015,-306.617606,0.000239,7]
[365844076,1749953455025,-306.617606,0.000239,7]
[365844077,1749953455035,-395.502318,0.000239,7]
[365844078,1749953455044,-395.502318,0.000239,7]
[365844079,1749953455054,-165.105882,0.000239,7]
[365844080,1749953455063,-165.105882,0.000239,7]
[365844081,1749953455072,-151.0,0.000239,7]
[365844082,1749953455082,-409.99238165,0.000239,2]
[365844083,1749953455091,-206.0,0.0002391,2]
[365844084,1749953455101,-1001.18918501,0.00023921,2]
[365844085,1749953455110,-361.53851215,0.00023921,2]
[365844086,1749953455388,-433.6077534,0.00021917,4]
[365844087,1749953455399,-460.0,0.00021917,4]
[365844088,1749953455409,-460.0,0.00021917,4]
[365844089,1749953455418,-460.0,0.00021917,4]
[365844090,1749953455428,-460.0,0.00022191,4]
[365844091,1749953455439,-460.0,0.00022191,4]
[365844092,1749953455448,-460.0,0.00022191,4]
[365844093,1749953455458,-160.0,0.00022367,2]
[365844094,1749953455468,-56.36046298,0.00022465,4]
[365844095,1749953455589,-403.63953702,0.00022465,4]
[365844096,1749953455599,-434.31226409,0.00022465,4]
[365844099,1749953555815,1402.61660725,0.00025006,60]
[365844108,1749954372100,171.027138,0.00013699,2]
[365844110,1749954426115,-171.027138,0.00020187,2]
[365844111,1749954426134,-67.22929162,0.00020378,2]
[365844113,1749954431136,-435.09511165,0.00020378,2]
[365844114,1749954431158,-222.988894,0.00020839,2]
[365844115,1749954431182,-243.73486947,0.00021154,2]
[365844116,1749954445092,-256.26513053,0.00021154,2]
[365844117,1749954445111,-81.4610252,0.0002145,2]
[365844118,1749954446132,-418.5389748,0.0002145,2]
[365844119,1749954446153,-168.0,0.00021533,2]
[365844120,1749954446172,-175.51461491,0.000217,2]
[365844121,1749954446192,-1987.01,0.00021774,2]
[365844122,1749954446213,-248.35944406,0.00021817,2]
[365844123,1749954446239,-714.54627261,0.000219,6]
[365844124,1749954446260,-207.4,0.00021903,2]
[365844125,1749954446281,-300.0,0.00021915,2]
[365844126,1749954446302,-300.0,0.00021915,2]
[365844127,1749954446322,-1059.82227631,0.00021915,2]
[365844128,1749954446344,-172.24533993,0.00021916,2]
[365844129,1749954446366,-500.0,0.00021916,2]
[365844130,1749954446387,-500.0,0.00021916,2]
[365844131,1749954446410,-500.0,0.00021916,2]
[365844132,1749954446431,-200.0,0.00021916,2]
[365844133,1749954446453,-415.35271975,0.00021916,2]
[365844138,1749954564089,-156.8,0.00019816,2]
[365844176,1749954632811,-50.01348545,0.00019816,2]
[365844179,1749954632821,-263.72567874,0.00020916,2]
[365844183,1749954632833,-239.96252396,0.00020916,2]
[365844186,1749954632842,-500.0,0.00021154,2]
[365844189,1749954632852,-1961.72,0.00021768,2]
[365844192,1749954632862,-300.0,0.00021915,2]
[365844195,1749954632872,-84.64728025,0.00021916,2]
[365844197,1749954632881,-500.0,0.00021916,2]
[365844199,1749954632891,-500.0,0.00021916,2]
[365844201,1749954632899,-500.0,0.00021916,2]
[365844203,1749954632909,-500.0,0.00021916,2]
[365844204,1749954632918,-500.0,0.00021916,2]
[365844205,1749954632928,-500.0,0.00021916,2]
[365844206,1749954632937,-500.0,0.00021916,2]
[365844207,1749954632947,-500.0,0.00021916,2]
[365844208,1749954632956,-162.02204625,0.00021916,2]
[365844209,1749954633022,-337.97795375,0.00021916,2]
[365844210,1749954633032,-500.0,0.00021916,2]
[365844211,1749954633042,-500.0,0.00021916,2]
[365844212,1749954633053,-580.00441321,0.00021916,2]
[365844213,1749954633063,-431.55797314,0.00021917,4]
[365844214,1749954633073,-431.77860074,0.00021917,4]
[365844215,1749954633082,-365.47869035,0.00021917,4]
[365844216,1749954633091,-230.0,0.00021917,4]
[365844217,1749954633101,-460.56211308,0.00021917,4]
[365844218,1749954633112,-460.0,0.00021917,4]
[365844220,1749954633122,-183.95813642,0.00021917,4]
[365844222,1749954633133,-257.17427754,0.00021917,4]
[365844224,1749954633143,-460.0,0.00021917,4]
[365844226,1749954633153,-460.0,0.00021917,4]
[365844228,1749954633164,-340.0,0.00021917,4]
[365844230,1749954633174,-460.0,0.00021917,4]
[365844233,1749954633184,-421.31265839,0.00021917,4]
[365844234,1749954633194,-431.0244655,0.00021917,4]
[365844237,1749954633204,-460.0,0.00021917,4]
[365844239,1749954633214,-460.0,0.00021917,4]
[365844241,1749954633224,-354.97,0.00021917,4]
[365844243,1749954633234,-460.0,0.00021917,4]
[365844245,1749954633244,-435.1526284,0.00021917,4]
[365844247,1749954633253,-430.0,0.00021917,4]
[365844248,1749954633263,-460.0,0.00021917,4]
[365844249,1749954633273,-435.07132426,0.00021917,4]
[365844250,1749954633283,-460.0,0.00021917,4]
[365844251,1749954633292,-460.0,0.00021917,4]
[365844252,1749954633302,-421.1401447,0.00021917,4]
[365844253,1749954633312,-460.0,0.00021917,4]
[365844254,1749954633322,-435.60108467,0.00021917,4]
[365844255,1749954633332,-438.65900151,0.00021917,4]
[365844256,1749954633342,-460.0,0.00021917,4]
[365844257,1749954633351,-434.50545168,0.00021917,4]
[365844259,1749954633361,-460.0,0.00021917,4]
[365844260,1749954633371,-460.0,0.00021917,4]
[365844262,1749954633380,-460.0,0.00021917,4]
[365844264,1749954633390,-94.94417299,0.00021917,4]
[365844265,1749954633404,-355.09610934,0.00021917,4]
[365844266,1749954633413,-385.74308016,0.00021917,4]
[365844267,1749954633423,-460.0,0.00021917,4]
[365844268,1749954633434,-209.11332184,0.00021917,4]
[365844271,1749954633444,-460.0,0.00021917,4]
[365844273,1749954633454,-500.0,0.00021917,4]
[365844274,1749954633464,-500.0,0.00021917,4]
[365844277,1749954633474,-402.16260394,0.00021917,4]
[365844279,1749954633484,-430.0,0.00021917,4]
[365844281,1749954633493,-460.0,0.00021917,4]
[365844283,1749954633504,-460.0,0.00021917,4]
[365844285,1749954633513,-452.42193453,0.00021917,4]
[365844286,1749954633523,-436.03112636,0.00021917,4]
[365844289,1749954633533,-460.0,0.00021917,4]
[365844290,1749954633543,-435.00881419,0.00021917,4]
[365844292,1749954633553,-431.0871043,0.00021917,4]
[365844295,1749954633563,-441.68693781,0.00021917,4]
[365844296,1749954633573,-460.0,0.00021917,4]
[365844298,1749954633583,-460.0,0.00021917,4]
[365844301,1749954633593,-460.0,0.00021917,4]
[365844303,1749954633602,-450.0,0.00021917,4]
[365844304,1749954633612,-452.27619885,0.00021917,4]
[365844306,1749954633622,-460.0,0.00021917,4]
[365844308,1749954633632,-460.0,0.00021917,4]
[365844309,1749954633642,-460.0,0.00021917,4]
[365844310,1749954633652,-434.80124661,0.00021917,4]
[365844312,1749954633662,-270.0125495,0.00021917,4]
[365844315,1749954633674,-503.69791865,0.00021917,4]
[365844316,1749954633684,-437.63479541,0.00021917,4]
[365844317,1749954633694,-403.1260862,0.00021917,4]
[365844318,1749954633704,-454.44210361,0.00021917,4]
[365844319,1749954633714,-539.77646077,0.00021917,4]
[365844320,1749954633726,-460.0,0.00021917,4]
[365844321,1749954633736,-467.56964792,0.00021917,4]
[365844322,1749954633745,-441.89434858,0.00021917,4]
[365844323,1749954633756,-460.0,0.00021917,4]
[365844324,1749954633767,-460.0,0.00021917,4]
[365844325,1749954633777,-400.53214624,0.00021917,4]
[365844326,1749954633786,-460.0,0.00021917,4]
[365844327,1749954633797,-463.65260148,0.00021917,4]
[365844328,1749954633806,-236.2145002,0.00021917,4]
[365844329,1749954633817,-433.4971624,0.00021917,4]
[365844330,1749954633826,-460.0,0.00021917,4]
[365844331,1749954633836,-505.55693396,0.00021917,4]
[365844332,1749954633847,-460.0,0.00021917,4]
[365844333,1749954633856,-404.48913662,0.00021917,4]
[365844334,1749954633866,-460.0,0.00021917,4]
[365844335,1749954633875,-490.0,0.00021917,4]
[365844336,1749954633886,-460.0,0.00021917,4]
[365844337,1749954633895,-587.40878066,0.00021917,4]
[365844338,1749954633904,-305.37752194,0.00021917,4]
[365844339,1749954633914,-460.0,0.00021917,4]
[365844340,1749954633923,-460.0,0.00021917,4]
[365844341,1749954633933,-472.96947476,0.00021917,2]
[365844342,1749954633943,-430.0,0.00021917,4]
[365844343,1749954633953,-438.98472467,0.00021917,4]
[365844344,1749954633963,-430.0,0.00021917,4]
[365844345,1749954633973,-460.0,0.00021917,4]
[365844346,1749954633983,-469.98187644,0.00021917,4]
[365844347,1749954633993,-452.31264005,0.00021917,4]
[365844348,1749954634003,-460.0,0.00021917,4]
[365844349,1749954634013,-447.53823742,0.00021917,4]
[365844350,1749954634022,-434.14776034,0.00021917,4]
[365844351,1749954634032,-460.0,0.00021917,4]
[365844352,1749954634041,-548.34404625,0.00021917,4]
[365844353,1749954634051,-449.1494398,0.00021917,4]
[365844354,1749954634061,-446.9894275,0.00021917,4]
[365844355,1749954634070,-435.55162784,0.00021917,4]
[365844356,1749954634080,-430.0,0.00021917,4]
[365844357,1749954634090,-430.77774087,0.00021917,4]
[365844358,1749954634099,-511.922525,0.00021917,4]
[365844359,1749954634108,-448.82674647,0.00021917,4]
[365844360,1749954634117,-460.0,0.00021917,4]
[365844361,1749954634126,-401.92549684,0.00021917,4]
[365844362,1749954634136,-460.0,0.00021917,4]
[365844363,1749954634146,-400.44991057,0.00021917,4]
[365844364,1749954634155,-460.0,0.00021917,4]
[365844365,1749954634164,-438.87012694,0.00021917,4]
[365844366,1749954634174,-460.0,0.00021917,4]
[365844367,1749954634184,-580.88589625,0.00021917,4]
[365844368,1749954634194,-460.0,0.00021917,4]
[365844369,1749954634203,-374.85706274,0.00021917,4]
[365844370,1749954634213,-460.0,0.00021917,4]
[365844371,1749954634223,-460.0,0.00021917,4]
[365844372,1749954634232,-460.0,0.00021917,4]
[365844373,1749954634242,-430.0,0.00021917,4]
[365844374,1749954634252,-437.76104285,0.00021917,4]
[365844375,1749954634262,-460.0,0.00021917,4]
[365844376,1749954634271,-460.0,0.00021917,4]
[365844377,1749954634281,-460.0,0.00021917,4]
[365844378,1749954634290,-430.0,0.00021917,4]
[365844379,1749954634300,-500.0,0.00021917,4]
[365844380,1749954634310,-500.0,0.00021917,4]
[365844381,1749954634319,-438.0866892,0.00021917,4]
[365844382,1749954634329,-460.0,0.00021917,4]
[365844383,1749954634338,-460.0,0.00021917,4]
[365844384,1749954634348,-455.41596261,0.00021917,4]
[365844385,1749954634357,-430.0,0.00021917,4]
[365844386,1749954634366,-453.19469808,0.00021917,4]
[365844387,1749954634376,-460.0,0.00021917,4]
[365844388,1749954634385,-400.90917857,0.00021917,4]
[365844389,1749954634395,-460.0,0.00021917,4]
[365844390,1749954634405,-434.33380764,0.00021917,4]
[365844391,1749954634414,-460.0,0.00021917,4]
[365844392,1749954634424,-440.0,0.00021917,4]
[365844393,1749954634433,-430.0,0.00021917,4]
[365844394,1749954634443,-460.0,0.00021917,4]
[365844395,1749954634452,-434.25419798,0.00021917,4]
[365844396,1749954634462,-430.0,0.00021917,4]
[365844397,1749954634471,-352.44879873,0.00021917,4]
[365844398,1749954634481,-451.33830297,0.00021917,4]
[365844399,1749954634490,-460.0,0.00021917,4]
[365844400,1749954634499,-460.0,0.00021917,4]
[365844401,1749954634510,-460.0,0.00021917,4]
[365844402,1749954634520,-460.0,0.00021917,4]
[365844403,1749954634530,-151.0,0.00021917,4]
[365844404,1749954634539,-227.39227648,0.00021917,4]
[365844405,1749954634548,-501.54046199,0.00021917,4]
[365844406,1749954634558,-439.74068401,0.00021917,4]
[365844407,1749954634568,-430.0,0.00021917,4]
[365844408,1749954634577,-460.0,0.00021917,4]
[365844409,1749954634587,-435.0920666,0.00021917,4]
[365844410,1749954634596,-460.0,0.00021917,4]
[365844411,1749954634606,-460.0,0.00021917,4]
[365844412,1749954634616,-434.98044106,0.00021917,4]
[365844413,1749954634625,-447.02866952,0.00021917,4]
[365844414,1749954634635,-460.0,0.00021917,4]
[365844415,1749954634644,-431.59151985,0.00021917,4]
[365844416,1749954634654,-476.1684838,0.00021917,4]
[365844417,1749954634663,-460.0,0.00021917,4]
[365844418,1749954634673,-460.0,0.00021917,4]
[365844419,1749954634682,-460.0,0.00021917,4]
[365844420,1749954634692,-460.0,0.00021917,4]
[365844421,1749954634701,-316.14903048,0.00021917,4]
[365844422,1749954634712,-447.35543612,0.00021917,4]
[365844423,1749954634724,-151.40832899,0.00021917,2]
[365844424,1749954634733,-206.89543533,0.00021917,2]
[365844425,1749954634743,-460.0,0.00021917,4]
[365844426,1749954634752,-151.0,0.00021917,2]
[365844427,1749954634762,-296.93558151,0.00021917,4]
[365844428,1749954634773,-206.87,0.00021917,4]
[365844429,1749954634782,-405.89098023,0.00021917,4]
[365844430,1749954634792,-460.0,0.00021917,4]
[365844431,1749954634803,-152.02143592,0.00021917,2]
[365844432,1749954634813,-460.0,0.00021917,4]
[365844433,1749954634823,-1014.13537742,0.00021917,4]
[365844434,1749954634832,-440.00378042,0.00021917,4]
[365844435,1749954634842,-402.86930627,0.00021917,4]
[365844436,1749954634852,-431.68917545,0.00021917,4]
[365844437,1749954634862,-460.0,0.00021917,4]
[365844438,1749954634871,-436.04307269,0.00021917,4]
[365844439,1749954634881,-434.84369751,0.00021917,4]
[365844440,1749954634892,-460.0,0.00021917,4]
[365844441,1749954634901,-460.89,0.00021917,4]
[365844442,1749954634910,-430.0,0.00021917,4]
[365844443,1749954634920,-460.0,0.00021917,4]
[365844444,1749954634929,-437.80444972,0.00021917,4]
[365844445,1749954634939,-428.2625528,0.00021917,4]
[365844446,1749954634948,-460.0,0.00021917,4]
[365844447,1749954634957,-500.0,0.00021917,4]
[365844448,1749954634966,-460.0,0.00021917,4]
[365844449,1749954634976,-460.0,0.00021917,4]
[365844450,1749954634986,-460.0,0.00021917,4]
[365844451,1749954634995,-460.0,0.00021917,4]
[365844452,1749954635006,-460.0,0.00021917,4]
[365844453,1749954635015,-437.35065088,0.00021917,4]
[365844454,1749954635025,-424.73128863,0.00021917,4]
[365844455,1749954635035,-315.75777632,0.00021917,4]
[365844456,1749954635045,-431.43381877,0.00021917,4]
[365844457,1749954635056,-170.8691648,0.00021917,4]
[365844458,1749954635066,-460.0,0.00021917,4]
[365844459,1749954635077,-452.40584987,0.00021917,4]
[365844460,1749954635087,-460.0,0.00021917,4]
[365844461,1749954635097,-460.0,0.00021917,4]
[365844462,1749954635107,-460.0,0.00021917,4]
[365844463,1749954635116,-460.0,0.00021917,4]
[365844464,1749954635126,-460.0,0.00021917,4]
[365844465,1749954635135,-460.0,0.00021917,4]
[365844466,1749954635145,-459.5234862,0.00021917,4]
[365844467,1749954635154,-460.0,0.00021917,4]
[365844468,1749954635164,-460.0,0.00021917,4]
[365844469,1749954635173,-460.0,0.00021917,4]
[365844470,1749954635182,-458.58149068,0.00021917,4]
[365844471,1749954635192,-458.99218739,0.00021917,4]
[365844472,1749954635201,-460.0,0.00021917,4]
[365844473,1749954635211,-280.89556845,0.00021917,4]
[365844474,1749954635220,-590.85,0.00021917,4]
[365844475,1749954635229,-460.0,0.00021917,4]
[365844476,1749954635238,-464.08658372,0.00021917,4]
[365844477,1749954635247,-524.53092484,0.00021917,4]
[365844478,1749954635257,-401.58178813,0.00021917,4]
[365844479,1749954635266,-261.20718995,0.00021917,4]
[365844480,1749954635275,-322.1032523,0.00021917,4]
[365844481,1749954635284,-582.37,0.00021917,4]
[365844482,1749954635293,-437.42445961,0.00021917,4]
[365844483,1749954635302,-451.17328705,0.00021917,4]
[365844484,1749954635311,-453.2890695,0.00021917,4]
[365844485,1749954635320,-447.67996095,0.00021917,4]
[365844486,1749954635329,-370.0,0.00021917,4]
[365844487,1749954635339,-426.2586886,0.00021917,4]
[365844488,1749954635348,-435.10345864,0.00021917,4]
[365844489,1749954635357,-460.0,0.00021917,4]
[365844490,1749954635367,-460.0,0.00021917,4]
[365844491,1749954635376,-460.0,0.00021917,4]
[365844492,1749954635385,-460.0601061,0.00021917,4]
[365844493,1749954635395,-1067.47,0.00021917,4]
[365844494,1749954635404,-444.02941701,0.00021917,4]
[365844495,1749954635415,-460.0,0.00021917,4]
[365844496,1749954635425,-500.0,0.00021917,4]
[365844497,1749954635434,-460.0,0.00021917,4]
[365844498,1749954635443,-460.0,0.00021917,4]
[365844499,1749954635452,-547.36411792,0.00021917,4]
[365844500,1749954635462,-460.0,0.00021917,4]
[365844501,1749954635471,-451.98373064,0.00021917,4]
[365844502,1749954635480,-425.08298889,0.00021917,4]
[365844503,1749954635490,-428.46321594,0.00021917,4]
[365844504,1749954635500,-460.0,0.00021917,4]
[365844505,1749954635510,-466.66021343,0.00021917,4]
[365844506,1749954635519,-201.97261622,0.00021917,4]
[365844507,1749954635529,-422.68183697,0.00021917,4]
[365844508,1749954635539,-460.0,0.00021917,4]
[365844509,1749954635549,-390.86682684,0.00021917,4]
[365844510,1749954635558,-460.0,0.00021917,4]
[365844511,1749954635567,-460.0,0.00021917,4]
[365844512,1749954635576,-426.35056908,0.00021917,4]
[365844513,1749954635586,-460.0,0.00021917,4]
[365844514,1749954635596,-422.9606257,0.00021917,4]
[365844515,1749954635606,-463.93753095,0.00021917,4]
[365844516,1749954635615,-460.0,0.00021917,4]
[365844517,1749954635625,-460.0,0.00021917,4]
[365844518,1749954635635,-460.0,0.00021917,4]
[365844519,1749954635644,-500.0,0.00021917,4]
[365844520,1749954635653,-500.0,0.00021917,4]
[365844521,1749954635663,-500.0,0.00021917,4]
[365844522,1749954635672,-500.0,0.00021917,4]
[365844523,1749954635681,-758.84,0.00021917,4]
[365844524,1749954635690,-500.0,0.00021917,4]
[365844525,1749954635699,-438.04630413,0.00021917,4]
[365844526,1749954635709,-460.0,0.00021917,4]
[365844527,1749954635720,-432.22476922,0.00021917,4]
[365844528,1749954635730,-460.0,0.00021917,4]
[365844529,1749954635740,-433.34912289,0.00021917,4]
[365844530,1749954635869,-435.18496805,0.00021917,4]
[365844531,1749954635879,-460.0,0.00021917,4]
[365844532,1749954635888,-460.0,0.00021917,4]
[365844533,1749954635897,-468.82965598,0.00021917,4]
[365844534,1749954635906,-460.0,0.00021917,4]
[365844535,1749954635915,-358.78244192,0.00021917,4]
[365844536,1749954635924,-460.0,0.00021917,4]
[365844537,1749954635934,-460.0,0.00021917,4]
[365844538,1749954635943,-460.0,0.00021917,4]
[365844539,1749954635952,-460.0,0.00021917,4]
[365844540,1749954635962,-431.79723592,0.00021917,4]
[365844541,1749954635971,-460.0,0.00021917,4]
[365844542,1749954635980,-433.04077163,0.00021917,4]
[365844543,1749954635989,-460.0,0.00021917,4]
[365844544,1749954635998,-460.0,0.00021917,4]
[365844545,1749954636008,-454.10300541,0.00021917,4]
[365844546,1749954636017,-541.31786549,0.00021917,4]
[365844547,1749954636027,-460.0,0.00021917,4]
[365844548,1749954636036,-460.0,0.00021917,4]
[365844549,1749954636045,-452.33745152,0.00021917,4]
[365844550,1749954636054,-460.0,0.00021917,4]
[365844551,1749954636063,-433.66460507,0.00021917,4]
[365844552,1749954636078,-4092.25,0.00021917,4]
[365844553,1749954636088,-4718.6,0.00021917,4]
[365844554,1749954636098,-460.0,0.00021917,4]
[365844555,1749954636108,-371.0745565,0.00021917,4]
[365844556,1749954636117,-446.87822389,0.00021917,4]
[365844557,1749954636127,-2832.93,0.00021917,4]
[365844558,1749954636137,-2328.36,0.00021917,4]
[365844559,1749954636146,-460.0,0.00021917,4]